[Event "MČR v bleskovém šachu družstev 2019"]
[Site "Teplice, Czech Republic"]
[Date "2019.09.14"]
[Round "15.10"]
[White "Sokolov, Alexander"]
[Black "Mach, Petr"]
[Result "1-0"]
[TimeControl "3 mim. + 2 s"]
[WhiteTitle "FM"]
[WhiteFideId "4119177"]
[WhiteElo "2417"]
[BlackElo "1961"]

1. e4 {[%clk 00:03:02]} {[%emt 00:00:01]} d5 {[%clk 00:03:03]} 2. exd5 {[%clk
00:03:03]} {[%emt 00:00:03]} Nf6 {[%clk 00:03:04]} {[%emt 00:00:01]} 3. c4
{[%clk 00:03:00]} {[%emt 00:00:05]} e6 {[%clk 00:03:05]} 4. dxe6 {[%clk
00:03:00]} {[%emt 00:00:02]} Bxe6 {[%clk 00:03:06]} {[%emt 00:00:01]} 5. d4
{[%clk 00:03:00]} {[%emt 00:00:02]} Bb4+ {[%clk 00:03:07]} 6. Nc3 {[%clk
00:02:59]} {[%emt 00:00:03]} Qe7 {[%clk 00:02:35]} {[%emt 00:00:34]} 7. Be3
{[%clk 00:02:38]} {[%emt 00:00:23]} Ne4 {[%clk 00:02:35]} {[%emt 00:00:02]} 8.
Qc2 {[%clk 00:02:34]} {[%emt 00:00:06]} Bf5 {[%clk 00:02:00]} {[%emt 00:00:37]}
9. Bd3 {[%clk 00:02:34]} {[%emt 00:00:01]} Nc6 {[%clk 00:01:50]} {[%emt
00:00:12]} 10. Nge2 {[%clk 00:02:35]} {[%emt 00:00:01]} O-O-O {[%clk 00:01:36]}
{[%emt 00:00:16]} 11. d5 {[%clk 00:02:01]} {[%emt 00:00:36]} Bxc3+ {[%clk
00:01:14]} {[%emt 00:00:24]} 12. bxc3 {[%clk 00:01:43]} {[%emt 00:00:21]} Na5
{[%clk 00:00:54]} {[%emt 00:00:22]} 13. Qa4 {[%clk 00:00:48]} {[%emt 00:00:57]}
b6 {[%clk 00:00:52]} {[%emt 00:00:04]} 14. Nd4 {[%clk 00:00:42]} {[%emt
00:00:08]} Bd7 {[%clk 00:00:47]} {[%emt 00:00:07]} 15. Qc2 {[%clk 00:00:34]}
{[%emt 00:00:09]} Nd6 {[%clk 00:00:40]} {[%emt 00:00:09]} 16. Qe2 {[%clk
00:00:28]} {[%emt 00:00:09]} Ne4 {[%clk 00:00:34]} {[%emt 00:00:08]} 17. Rc1
{[%clk 00:00:27]} {[%emt 00:00:03]} Nc5 {[%clk 00:00:31]} {[%emt 00:00:05]} 18.
O-O {[%clk 00:00:28]} {[%emt 00:00:02]} Nxd3 {[%clk 00:00:31]} {[%emt
00:00:01]} 19. Qxd3 {[%clk 00:00:29]} {[%emt 00:00:01]} Qa3 {[%clk 00:00:30]}
{[%emt 00:00:03]} 20. Nb5 {[%clk 00:00:24]} {[%emt 00:00:07]} Bxb5 {[%clk
00:00:29]} {[%emt 00:00:04]} 21. cxb5 {[%clk 00:00:25]} {[%emt 00:00:01]} Qxa2
{[%clk 00:00:28]} {[%emt 00:00:02]} 22. c4 {[%clk 00:00:25]} {[%emt 00:00:02]}
Qb3 {[%clk 00:00:18]} {[%emt 00:00:12]} 23. Rc3 {[%clk 00:00:19]} {[%emt
00:00:08]} Qb4 {[%clk 00:00:15]} {[%emt 00:00:04]} 24. Bd4 {[%clk 00:00:21]}
{[%emt 00:00:01]} f6 {[%clk 00:00:15]} {[%emt 00:00:02]} 25. Rb1 {[%clk
00:00:20]} {[%emt 00:00:03]} Qd6 {[%clk 00:00:15]} {[%emt 00:00:02]} 26. g3
{[%clk 00:00:20]} {[%emt 00:00:03]} Kb8 {[%clk 00:00:15]} {[%emt 00:00:01]} 27.
Rc2 {[%clk 00:00:20]} {[%emt 00:00:02]} Nb7 {[%clk 00:00:14]} {[%emt 00:00:02]}
28. Ra2 {[%clk 00:00:19]} {[%emt 00:00:03]} Rhe8 {[%clk 00:00:12]} {[%emt
00:00:04]} 29. Rba1 {[%clk 00:00:18]} {[%emt 00:00:03]} Na5 {[%clk 00:00:13]}
{[%emt 00:00:01]} 30. Bc3 {[%clk 00:00:17]} {[%emt 00:00:04]} Qc5 {[%clk
00:00:08]} {[%emt 00:00:07]} 31. Bxa5 {[%clk 00:00:18]} {[%emt 00:00:01]} bxa5
{[%clk 00:00:09]} {[%emt 00:00:01]} 32. Rxa5 {[%clk 00:00:16]} {[%emt
00:00:04]} h6 {[%clk 00:00:09]} {[%emt 00:00:02]} 33. Kg2 {[%clk 00:00:14]}
{[%emt 00:00:04]} Re5 {[%clk 00:00:08]} {[%emt 00:00:03]} 34. R1a2 {[%clk
00:00:11]} {[%emt 00:00:05]} Rde8 {[%clk 00:00:07]} {[%emt 00:00:03]} 35. Ra6
{[%clk 00:00:12]} {[%emt 00:00:01]} Re1 {[%clk 00:00:07]} {[%emt 00:00:03]} 36.
Rc6 {[%clk 00:00:11]} {[%emt 00:00:03]} Qe7 {[%clk 00:00:06]} {[%emt 00:00:02]}
37. d6 {[%clk 00:00:07]} {[%emt 00:00:06]} cxd6 {[%clk 00:00:06]} {[%emt
00:00:02]} 38. Rxd6 {[%clk 00:00:08]} {[%emt 00:00:01]} Qc7 {[%clk 00:00:06]}
{[%emt 00:00:01]} 39. Rd7 {[%clk 00:00:08]} {[%emt 00:00:03]} Qb6 {[%clk
00:00:06]} {[%emt 00:00:03]} 40. Ra6 {[%clk 00:00:07]} {[%emt 00:00:02]} Qc5
{[%clk 00:00:07]} {[%emt 00:00:01]} 41. Rd8+ {[%clk 00:00:08]} {[%emt
00:00:01]} Rxd8 {[%clk 00:00:08]} {[%emt 00:00:01]} 42. Qxd8+ {[%clk 00:00:09]}
{[%emt 00:00:01]} Qc8 {[%clk 00:00:09]} 43. Qxc8+ {[%clk 00:00:09]} {[%emt
00:00:02]} Kxc8 {[%clk 00:00:10]} {[%emt 00:00:01]} 44. Rxa7 {[%clk 00:00:10]}
Rc1 {[%clk 00:00:11]} {[%emt 00:00:01]} 45. Rxg7 {[%clk 00:00:11]} {[%emt
00:00:01]} Rxc4 {[%clk 00:00:12]} 46. Rg6 {[%clk 00:00:13]} Rb4 {[%clk
00:00:13]} {[%emt 00:00:02]} 47. Rxf6 {[%clk 00:00:14]} {[%emt 00:00:01]} Rxb5
{[%clk 00:00:14]} 48. Rxh6 {[%clk 00:00:15]} {[%emt 00:00:01]} Kd7 {[%clk
00:00:15]} 49. Rf6 {[%clk 00:00:16]} Ke7 {[%clk 00:00:16]} {[%emt 00:00:02]} 50.
Rf4 {[%clk 00:00:18]} Rh5 {[%clk 00:00:17]} {[%emt 00:00:01]} 51. h4 {[%clk
00:00:19]} Ke6 {[%clk 00:00:17]} {[%emt 00:00:01]} 52. Kh3 {[%clk 00:00:21]}
Ke5 {[%clk 00:00:18]} {[%emt 00:00:01]} 53. Rf3 {[%clk 00:00:22]} Ke4 {[%clk
00:00:19]} {[%emt 00:00:01]} 54. Re3+ {[%clk 00:00:23]} Kf5 {[%clk 00:00:20]}
{[%emt 00:00:02]} 55. g4+ {[%clk 00:00:25]} 1-0

[Event "MČR v bleskovém šachu družstev 2019"]
[Site "Teplice, Czech Republic"]
[Date "2019.09.14"]
[Round "15.11"]
[White "Kovar, Vojtech"]
[Black "Dolezal, Radoslav"]
[Result "0-1"]
[TimeControl "3 mim. + 2 s"]
[BlackTitle "IM"]
[BlackFideId "304735"]
[WhiteElo "2247"]
[BlackElo "2359"]

1. d4 {[%clk 00:03:02]} {[%emt 00:00:02]} Nf6 {[%clk 00:03:03]} {[%emt
00:00:02]} 2. Nf3 {[%clk 00:03:03]} e6 {[%clk 00:03:03]} {[%emt 00:00:02]} 3.
g3 {[%clk 00:03:03]} {[%emt 00:00:02]} c5 {[%clk 00:03:04]} {[%emt 00:00:01]} 4.
Bg2 {[%clk 00:03:02]} {[%emt 00:00:03]} Nc6 {[%clk 00:03:05]} 5. O-O {[%clk
00:03:01]} {[%emt 00:00:03]} b5 {[%clk 00:03:06]} 6. a4 {[%clk 00:03:01]}
{[%emt 00:00:02]} b4 {[%clk 00:03:07]} {[%emt 00:00:01]} 7. c4 {[%clk
00:03:02]} {[%emt 00:00:02]} cxd4 {[%clk 00:03:00]} {[%emt 00:00:09]} 8. Nxd4
{[%clk 00:03:02]} Bb7 {[%clk 00:03:02]} 9. Nxc6 {[%clk 00:02:55]} {[%emt
00:00:10]} Bxc6 {[%clk 00:03:01]} {[%emt 00:00:03]} 10. Bxc6 {[%clk 00:02:56]}
{[%emt 00:00:01]} dxc6 {[%clk 00:03:02]} {[%emt 00:00:01]} 11. Qxd8+ {[%clk
00:02:56]} {[%emt 00:00:01]} Rxd8 {[%clk 00:03:03]} {[%emt 00:00:01]} 12. Be3
{[%clk 00:02:57]} a6 {[%clk 00:02:47]} {[%emt 00:00:19]} 13. Nd2 {[%clk
00:02:50]} {[%emt 00:00:08]} Ng4 {[%clk 00:02:46]} {[%emt 00:00:02]} 14. Nb3
{[%clk 00:02:52]} {[%emt 00:00:01]} Nxe3 {[%clk 00:02:45]} {[%emt 00:00:03]} 15.
fxe3 {[%clk 00:02:52]} {[%emt 00:00:01]} Be7 {[%clk 00:02:40]} {[%emt
00:00:07]} 16. Rfd1 {[%clk 00:02:05]} {[%emt 00:00:49]} Bf6 {[%clk 00:02:33]}
{[%emt 00:00:10]} 17. Rxd8+ {[%clk 00:02:05]} {[%emt 00:00:02]} Kxd8 {[%clk
00:02:34]} {[%emt 00:00:01]} 18. Rd1+ {[%clk 00:02:05]} {[%emt 00:00:02]} Kc8
{[%clk 00:02:27]} {[%emt 00:00:09]} 19. Rd2 {[%clk 00:02:02]} {[%emt 00:00:05]}
Rd8 {[%clk 00:02:24]} {[%emt 00:00:05]} 20. Rxd8+ {[%clk 00:02:03]} {[%emt
00:00:01]} Kxd8 {[%clk 00:02:25]} {[%emt 00:00:01]} 21. Nd4 {[%clk 00:01:59]}
{[%emt 00:00:05]} c5 {[%clk 00:02:10]} {[%emt 00:00:17]} 22. Nb3 {[%clk
00:01:59]} {[%emt 00:00:01]} Bxb2 {[%clk 00:01:37]} {[%emt 00:00:35]} 23. Nxc5
{[%clk 00:02:00]} {[%emt 00:00:01]} Bc3 {[%clk 00:01:19]} {[%emt 00:00:20]} 24.
Kf2 {[%clk 00:01:54]} {[%emt 00:00:08]} Kc7 {[%clk 00:01:14]} {[%emt 00:00:07]}
25. Ne4 {[%clk 00:01:05]} {[%emt 00:00:50]} Kc6 {[%clk 00:00:35]} {[%emt
00:00:41]} 0-1

[Event "MČR v bleskovém šachu družstev 2019"]
[Site "Teplice, Czech Republic"]
[Date "2019.09.14"]
[Round "15.12"]
[White "Postupa, Pavel"]
[Black "Popper, Tomas"]
[Result "1-0"]
[TimeControl "3 mim. + 2 s"]
[WhiteFideId "326410"]
[WhiteElo "2184"]
[BlackElo "2088"]

1. e4 {[%clk 00:03:02]} {[%emt 00:00:02]} e5 {[%clk 00:03:00]} {[%emt
00:00:04]} 2. Nf3 {[%clk 00:03:03]} {[%emt 00:00:01]} d6 {[%clk 00:03:01]} 3.
d4 {[%clk 00:03:03]} {[%emt 00:00:01]} exd4 {[%clk 00:03:02]} {[%emt 00:00:02]}
4. Nxd4 {[%clk 00:03:05]} Nf6 {[%clk 00:03:03]} {[%emt 00:00:01]} 5. Nc3 {[%clk
00:03:05]} {[%emt 00:00:01]} c6 {[%clk 00:03:04]} 6. Be2 {[%clk 00:03:06]}
{[%emt 00:00:01]} Be7 {[%clk 00:03:05]} 7. O-O {[%clk 00:03:07]} {[%emt
00:00:02]} O-O {[%clk 00:03:06]} {[%emt 00:00:01]} 8. Bf4 {[%clk 00:03:03]}
{[%emt 00:00:06]} Re8 {[%clk 00:03:06]} {[%emt 00:00:01]} 9. Bg3 {[%clk
00:03:02]} {[%emt 00:00:03]} Bf8 {[%clk 00:03:06]} {[%emt 00:00:02]} 10. Bf3
{[%clk 00:03:03]} {[%emt 00:00:01]} Nbd7 {[%clk 00:03:05]} {[%emt 00:00:03]} 11.
Re1 {[%clk 00:03:02]} {[%emt 00:00:03]} Ne5 {[%clk 00:03:05]} {[%emt 00:00:01]}
12. b3 {[%clk 00:02:56]} {[%emt 00:00:08]} Nxf3+ {[%clk 00:02:54]} {[%emt
00:00:13]} 13. Nxf3 {[%clk 00:02:56]} {[%emt 00:00:02]} Bg4 {[%clk 00:02:51]}
{[%emt 00:00:04]} 14. Qd3 {[%clk 00:02:55]} {[%emt 00:00:04]} Qc7 {[%clk
00:02:35]} {[%emt 00:00:18]} 15. h3 {[%clk 00:02:54]} {[%emt 00:00:03]} Bxf3
{[%clk 00:02:27]} {[%emt 00:00:10]} 16. Qxf3 {[%clk 00:02:55]} {[%emt
00:00:01]} Rad8 {[%clk 00:02:26]} {[%emt 00:00:03]} 17. Rad1 {[%clk 00:02:55]}
{[%emt 00:00:02]} Qb6 {[%clk 00:02:15]} {[%emt 00:00:14]} 18. Kh2 {[%clk
00:02:46]} {[%emt 00:00:12]} a5 {[%clk 00:02:06]} {[%emt 00:00:10]} 19. Re3
{[%clk 00:02:46]} {[%emt 00:00:02]} Re6 {[%clk 00:01:48]} {[%emt 00:00:20]} 20.
Bh4 {[%clk 00:02:40]} {[%emt 00:00:09]} Rde8 {[%clk 00:01:45]} {[%emt
00:00:04]} 21. Bxf6 {[%clk 00:02:30]} {[%emt 00:00:12]} Rxf6 {[%clk 00:01:46]}
{[%emt 00:00:01]} 22. Qg3 {[%clk 00:02:31]} {[%emt 00:00:02]} Rg6 {[%clk
00:01:39]} {[%emt 00:00:09]} 23. Qf3 {[%clk 00:02:22]} {[%emt 00:00:10]} Rf6
{[%clk 00:01:35]} {[%emt 00:00:06]} 24. Qe2 {[%clk 00:02:11]} {[%emt 00:00:13]}
Rfe6 {[%clk 00:01:33]} {[%emt 00:00:04]} 25. Qd2 {[%clk 00:01:59]} {[%emt
00:00:13]} f5 {[%clk 00:01:17]} {[%emt 00:00:18]} 26. exf5 {[%clk 00:01:54]}
{[%emt 00:00:08]} Rxe3 {[%clk 00:01:18]} 27. fxe3 {[%clk 00:01:54]} {[%emt
00:00:01]} Qxe3 {[%clk 00:01:19]} {[%emt 00:00:02]} 28. Qd3 {[%clk 00:01:45]}
{[%emt 00:00:11]} d5 {[%clk 00:01:15]} {[%emt 00:00:06]} 29. Qxe3 {[%clk
00:01:39]} {[%emt 00:00:07]} Rxe3 {[%clk 00:01:16]} {[%emt 00:00:01]} 30. Rd3
{[%clk 00:01:39]} {[%emt 00:00:02]} Bd6+ {[%clk 00:01:13]} {[%emt 00:00:04]} 31.
Kg1 {[%clk 00:01:40]} {[%emt 00:00:01]} Re1+ {[%clk 00:01:10]} {[%emt
00:00:05]} 32. Kf2 {[%clk 00:01:34]} {[%emt 00:00:08]} Rc1 {[%clk 00:01:05]}
{[%emt 00:00:07]} 33. Kf3 {[%clk 00:00:59]} {[%emt 00:00:37]} Rxc2 {[%clk
00:00:57]} {[%emt 00:00:10]} 34. g4 {[%clk 00:01:01]} Bc5 {[%clk 00:00:54]}
{[%emt 00:00:05]} 35. h4 {[%clk 00:01:00]} {[%emt 00:00:03]} Kf7 {[%clk
00:00:43]} {[%emt 00:00:13]} 36. g5 {[%clk 00:01:01]} {[%emt 00:00:01]} Rf2+
{[%clk 00:00:41]} {[%emt 00:00:04]} 37. Kg4 {[%clk 00:01:02]} {[%emt 00:00:02]}
Bd6 {[%clk 00:00:32]} {[%emt 00:00:12]} 38. h5 {[%clk 00:01:00]} {[%emt
00:00:04]} Rf4+ {[%clk 00:00:30]} {[%emt 00:00:03]} 39. Kh3 {[%clk 00:00:57]}
{[%emt 00:00:06]} Rxf5 {[%clk 00:00:31]} {[%emt 00:00:02]} 40. Ne2 {[%clk
00:00:48]} {[%emt 00:00:10]} Rxg5 {[%clk 00:00:21]} {[%emt 00:00:12]} 41. Rf3+
{[%clk 00:00:49]} {[%emt 00:00:01]} Ke7 {[%clk 00:00:23]} {[%emt 00:00:01]} 42.
Nd4 {[%clk 00:00:47]} {[%emt 00:00:03]} Rxh5+ {[%clk 00:00:20]} {[%emt
00:00:05]} 43. Kg2 {[%clk 00:00:49]} Re5 {[%clk 00:00:19]} {[%emt 00:00:03]} 44.
Nf5+ {[%clk 00:00:47]} {[%emt 00:00:03]} Kd7 {[%clk 00:00:18]} {[%emt
00:00:02]} 45. Nxg7 {[%clk 00:00:47]} {[%emt 00:00:02]} Re2+ {[%clk 00:00:18]}
{[%emt 00:00:01]} 46. Kf1 {[%clk 00:00:48]} {[%emt 00:00:01]} 1-0

[Event "MČR v bleskovém šachu družstev 2019"]
[Site "Teplice, Czech Republic"]
[Date "2019.09.14"]
[Round "15.13"]
[White "Bujak, Michal"]
[Black "Bernasek, Jan"]
[Result "0-1"]
[TimeControl "3 mim. + 2 s"]
[BlackTitle "GM"]
[WhiteFideId "316318"]
[BlackFideId "311995"]
[WhiteElo "2120"]
[BlackElo "2526"]

1. e4 {[%clk 00:03:02]} {[%emt 00:00:01]} c5 {[%clk 00:03:04]} 2. Nf3 {[%emt
00:00:01]} e6 3. c4 {[%clk 00:03:01]} {[%emt 00:00:04]} Nc6 {[%clk 00:03:05]}
{[%emt 00:00:03]} 4. Nc3 {[%clk 00:03:01]} {[%emt 00:00:02]} Nd4 {[%clk
00:03:05]} {[%emt 00:00:02]} 5. d3 {[%clk 00:02:49]} {[%emt 00:00:13]} d6
{[%clk 00:03:04]} {[%emt 00:00:02]} 6. Nxd4 {[%clk 00:02:46]} {[%emt 00:00:05]}
cxd4 {[%clk 00:03:04]} {[%emt 00:00:02]} 7. Ne2 {[%clk 00:02:42]} {[%emt
00:00:06]} e5 {[%clk 00:03:05]} {[%emt 00:00:02]} 8. g3 {[%clk 00:02:36]}
{[%emt 00:00:08]} h5 {[%clk 00:03:04]} {[%emt 00:00:01]} 9. h4 {[%clk
00:02:19]} {[%emt 00:00:20]} Nh6 {[%clk 00:02:58]} {[%emt 00:00:09]} 10. Bg5
{[%clk 00:01:49]} {[%emt 00:00:32]} Be7 {[%clk 00:02:54]} {[%emt 00:00:05]} 11.
Bd2 {[%clk 00:01:16]} {[%emt 00:00:36]} Ng4 {[%clk 00:02:36]} {[%emt 00:00:20]}
12. Bg2 {[%clk 00:01:02]} {[%emt 00:00:16]} g5 {[%clk 00:02:36]} {[%emt
00:00:02]} 13. hxg5 {[%clk 00:00:43]} {[%emt 00:00:21]} Bxg5 {[%clk 00:02:37]}
{[%emt 00:00:01]} 14. Bxg5 {[%clk 00:00:38]} {[%emt 00:00:08]} Qxg5 {[%clk
00:02:36]} {[%emt 00:00:02]} 15. f4 {[%clk 00:00:39]} {[%emt 00:00:02]} Qg7
{[%clk 00:02:34]} {[%emt 00:00:04]} 16. Qd2 {[%clk 00:00:27]} {[%emt 00:00:14]}
Ne3 {[%clk 00:02:34]} {[%emt 00:00:02]} 17. Bf3 {[%clk 00:00:26]} {[%emt
00:00:03]} Bg4 {[%clk 00:02:32]} {[%emt 00:00:04]} 18. Bxg4 {[%clk 00:00:20]}
{[%emt 00:00:08]} hxg4 {[%clk 00:02:33]} {[%emt 00:00:01]} 19. Kf2 {[%clk
00:00:19]} {[%emt 00:00:03]} O-O-O {[%clk 00:02:22]} {[%emt 00:00:13]} 20. Rac1
{[%clk 00:00:17]} {[%emt 00:00:04]} Rxh1 {[%clk 00:02:16]} {[%emt 00:00:07]} 21.
Rxh1 {[%clk 00:00:18]} {[%emt 00:00:01]} Rh8 {[%clk 00:02:17]} 22. Qe1 {[%clk
00:00:15]} {[%emt 00:00:07]} Rh6 {[%clk 00:02:04]} {[%emt 00:00:15]} 23. Kg1
{[%clk 00:00:04]} {[%emt 00:00:13]} Rxh1+ {[%clk 00:01:50]} {[%emt 00:00:16]}
24. Kxh1 {[%clk 00:00:05]} Qh6+ {[%clk 00:01:51]} {[%emt 00:00:02]} 25. Kg1
{[%clk 00:00:06]} {[%emt 00:00:01]} Qh3 26. Qf2 f6 {[%clk 00:01:44]} {[%emt
00:00:09]} 27. Nc1 {[%clk 00:00:07]} {[%emt 00:00:03]} Kd7 {[%clk 00:01:35]}
{[%emt 00:00:11]} 28. b4 {[%clk 00:00:08]} {[%emt 00:00:02]} Ke7 {[%clk
00:01:36]} 29. a4 {[%clk 00:00:08]} {[%emt 00:00:03]} exf4 {[%clk 00:01:27]}
{[%emt 00:00:10]} 30. gxf4 {[%clk 00:00:07]} {[%emt 00:00:03]} g3 {[%clk
00:01:28]} {[%emt 00:00:01]} 0-1

[Event "MČR v bleskovém šachu družstev 2019"]
[Site "Teplice, Czech Republic"]
[Date "2019.09.14"]
[Round "15.16"]
[White "Kuba, Jindrich"]
[Black "Janocko, Petr"]
[Result "1-0"]
[TimeControl "3 mim. + 2 s"]
[WhiteTitle "FM"]
[WhiteFideId "318248"]
[BlackFideId "320099"]
[WhiteElo "2223"]
[BlackElo "2067"]

1. e4 {[%clk 00:03:03]} c6 {[%clk 00:03:03]} 2. d4 {[%clk 00:03:03]} {[%emt
00:00:02]} d5 {[%clk 00:03:05]} 3. Nc3 {[%clk 00:03:04]} {[%emt 00:00:02]} dxe4
{[%clk 00:03:06]} 4. Nxe4 {[%clk 00:03:05]} {[%emt 00:00:01]} Bf5 {[%clk
00:03:07]} {[%emt 00:00:01]} 5. Ng3 {[%clk 00:03:06]} Bg6 {[%clk 00:03:08]} 6.
Nf3 {[%clk 00:03:07]} {[%emt 00:00:01]} Nd7 {[%clk 00:03:09]} 7. h4 {[%clk
00:03:08]} h5 {[%clk 00:03:10]} 8. Bd3 {[%clk 00:03:07]} {[%emt 00:00:03]} Bxd3
{[%clk 00:03:10]} {[%emt 00:00:01]} 9. Qxd3 {[%clk 00:03:08]} e6 {[%clk
00:03:10]} {[%emt 00:00:02]} 10. Bd2 {[%clk 00:03:09]} {[%emt 00:00:02]} Ngf6
{[%clk 00:03:10]} {[%emt 00:00:02]} 11. O-O-O {[%clk 00:03:08]} {[%emt
00:00:03]} Bd6 {[%clk 00:03:10]} {[%emt 00:00:02]} 12. Ne2 {[%clk 00:03:04]}
{[%emt 00:00:06]} Qc7 {[%clk 00:03:09]} {[%emt 00:00:03]} 13. Kb1 {[%clk
00:03:01]} {[%emt 00:00:05]} O-O-O {[%clk 00:03:08]} {[%emt 00:00:03]} 14. c4
{[%clk 00:02:59]} {[%emt 00:00:04]} c5 {[%clk 00:02:58]} {[%emt 00:00:13]} 15.
Bc3 {[%clk 00:02:52]} {[%emt 00:00:08]} Rhe8 {[%clk 00:02:53]} {[%emt
00:00:06]} 16. b3 {[%clk 00:02:40]} {[%emt 00:00:14]} a6 {[%clk 00:02:40]}
{[%emt 00:00:15]} 17. g3 {[%clk 00:02:32]} {[%emt 00:00:10]} cxd4 {[%clk
00:02:24]} {[%emt 00:00:19]} 18. Nexd4 {[%clk 00:02:23]} {[%emt 00:00:11]} Nc5
{[%clk 00:02:11]} {[%emt 00:00:15]} 19. Qc2 {[%clk 00:02:24]} {[%emt 00:00:02]}
Nce4 {[%clk 00:02:03]} {[%emt 00:00:10]} 20. Bb2 {[%clk 00:02:24]} {[%emt
00:00:02]} Bc5 {[%clk 00:02:03]} {[%emt 00:00:02]} 21. Rhe1 {[%clk 00:02:21]}
{[%emt 00:00:05]} e5 {[%clk 00:01:56]} {[%emt 00:00:09]} 22. Nf5 {[%clk
00:02:02]} {[%emt 00:00:21]} Rxd1+ {[%clk 00:01:49]} {[%emt 00:00:10]} 23. Rxd1
{[%clk 00:01:58]} {[%emt 00:00:06]} Nxf2 {[%clk 00:01:47]} {[%emt 00:00:04]} 24.
Nxg7 {[%clk 00:01:43]} {[%emt 00:00:18]} Nxd1 {[%clk 00:01:05]} {[%emt
00:00:44]} 25. Nxe8 Nxe8 {[%clk 00:01:06]} 26. Qxd1 {[%clk 00:01:44]} e4 {[%clk
00:01:07]} 27. Ne5 {[%clk 00:01:41]} {[%emt 00:00:05]} f6 {[%clk 00:01:04]}
{[%emt 00:00:05]} 28. Qxh5 {[%clk 00:01:40]} {[%emt 00:00:03]} Qe7 {[%clk
00:00:46]} {[%emt 00:00:19]} 29. Qf5+ {[%clk 00:01:32]} {[%emt 00:00:10]} Kc7
{[%clk 00:00:42]} {[%emt 00:00:06]} 30. Ng6 {[%clk 00:01:33]} {[%emt 00:00:02]}
Qd6 {[%clk 00:00:37]} {[%emt 00:00:08]} 31. Qxe4 {[%clk 00:01:20]} {[%emt
00:00:14]} Qd1+ {[%clk 00:00:38]} {[%emt 00:00:01]} 32. Bc1 {[%clk 00:01:22]}
Ba3 {[%clk 00:00:39]} 33. Qc2 {[%clk 00:01:23]} {[%emt 00:00:02]} Qd6 {[%clk
00:00:18]} {[%emt 00:00:23]} 34. Nf4 {[%clk 00:01:22]} {[%emt 00:00:03]} Bxc1
{[%clk 00:00:15]} {[%emt 00:00:05]} 35. Qxc1 {[%clk 00:01:22]} {[%emt
00:00:02]} Kb8 {[%emt 00:00:05]} 36. h5 {[%clk 00:01:13]} {[%emt 00:00:10]} f5
{[%clk 00:00:13]} {[%emt 00:00:02]} 37. Qe3 {[%clk 00:01:00]} {[%emt 00:00:15]}
Qd1+ {[%clk 00:00:12]} {[%emt 00:00:02]} 38. Kb2 {[%clk 00:01:01]} {[%emt
00:00:01]} Nc7 {[%clk 00:00:13]} {[%emt 00:00:02]} 39. h6 {[%clk 00:00:57]}
{[%emt 00:00:06]} Qh1 {[%clk 00:00:14]} 40. Nd5 {[%clk 00:00:53]} {[%emt
00:00:06]} Nxd5 {[%clk 00:00:04]} {[%emt 00:00:11]} 41. cxd5 {[%clk 00:00:54]}
{[%emt 00:00:01]} Qxd5 {[%clk 00:00:05]} {[%emt 00:00:02]} 42. h7 {[%clk
00:00:51]} {[%emt 00:00:05]} Qh1 {[%clk 00:00:03]} {[%emt 00:00:04]} 43. Qe5+
{[%emt 00:00:02]} Ka7 44. h8=Q {[%clk 00:00:50]} {[%emt 00:00:03]} Qg2+ {[%clk
00:00:05]} 45. Ka3 {[%clk 00:00:49]} {[%emt 00:00:03]} Qc2 {[%clk 00:00:04]}
{[%emt 00:00:03]} 46. Qd4+ {[%emt 00:00:07]} 1-0